[Event "WYCC 2018 O18"]
[Site "Halkidiki"]
[Date "2018.10.23"]
[Round "5"]
[White "Kandil, Adham"]
[Black "Bremner, William"]
[Result "1-0"]
[ECO "B13"]
[WhiteElo "2292"]
[BlackElo "2046"]
[Annotator "NA"]
[PlyCount "81"]
[EventDate "2018.10.20"]
[EventType "swiss"]
[EventCountry "GRE"]
[SourceTitle "playchess.com"]
[Source "ChessBase"]
[SourceQuality "1"]
[TimeControl "40/5400+30:1800+30"]

1. e4 {[%emt 0:00:00]} c6 {[%emt 0:00:00]} 2. d4 {[%emt 0:00:00]} d5 {[%emt 0:00:00]} 3. exd5 {[%emt 0:00:20]} cxd5 {[%emt 0:00:00]} 4. c4 {[%emt 0:00:11]} Nf6 {[%emt 0:00:04]} 5. Nc3 {[%emt 0:00:15]} Nc6 {[%emt 0:00:14]} 6. Bg5 {[%emt 0:00:13]} dxc4 {[%emt 0:00:12]} 7. Bxc4 {[%emt 0:00:44]} h6 {[%emt 0:01:23] B13: Caro-Kann: Exchange Variation and Panov-Botvinnik Attack} 8. Bxf6 {[%emt 0:00:52]} (8. Be3 e6 9. Nf3 Bd6 10. O-O O-O 11. Rc1 b6 12. Qa4 Bb7 13. Rfd1 Ne7 14. Ne5 Ned5 15. Ba6 Bxa6 16. Qxa6 Nxc3 17. bxc3 {½-½ (38) Naiditsch,A (2697)-Sebag,M (2486) Brest 2018}) 8... exf6 {[%emt 0:00:49]} 9. Nge2 {[%emt 0:03:59]} Bd6 {[%emt 0:04:04]} 10. d5 $146 {[%emt 0:08:51]} ({Predecessor:} 10. O-O O-O 11. Qd2 Bf5 12. Rad1 Re8 13. Bd3 Qd7 14. Bxf5 Qxf5 15. Ng3 {0-1 (35) Fernandez Fuentes,F (2131)-Avila Jimenez,X (2220) Catalunya 2014}) 10... Ne5 {[%emt 0:05:09]} 11. Bb5+ {[%emt 0:00:04]} Bd7 {[%emt 0:04:14]} 12. f4 {[%emt 0:04:27]} Ng4 {[%emt 0:12:08]} 13. Qa4 {[%emt 0:02:21]} a6 {[%emt 0:07:57]} 14. Qe4+ {[%emt 0:03:32]} Kf8 {[%emt 0:04:46]} 15. Bxd7 {[%emt 0:04:22]} Qxd7 {[%emt 0:00:12]} 16. Qd4 {[%emt 0:07:37]} f5 {[%emt 0:05:42]} 17. h3 {[%emt 0:02:14]} Nf6 {[%emt 0:00:21]} 18. O-O {[%emt 0:02:36]} Rc8 {[%emt 0:03:51]} 19. Kh1 {[%emt 0:00:57]} Bc5 {[%emt 0:01:52]} 20. Qd3 {[%emt 0:00:21]} g6 {[%emt 0:01:48]} 21. Ng1 {[%emt 0:03:45]} Bxg1 {[%emt 0:04:27]} 22. Kxg1 {[%emt 0:02:25]} Kg7 {[%emt 0:00:57]} 23. Rae1 {[%emt 0:00:24]} Rhd8 {[%emt 0:03:29]} 24. Re5 $17 {[%emt 0:01:27]} Qd6 {[%emt 0:03:03]} 25. Rfe1 {[%emt 0:00:58]} Qb6+ {[%emt 0:05:14]} 26. R1e3 {[%emt 0:03:02]} Qxb2 {[%emt 0:03:42]} 27. Qd4 {[%emt 0:00:58]} Kg8 {[%emt 0:08:16]} 28. Kh2 {[%emt 0:07:16]} Ne4 {[%emt 0:01:24]} 29. Re7 {[%emt 0:06:29]} Rxc3 {[%emt 0:06:48]} 30. R7xe4 {[%emt 0:00:21]} fxe4 {[%emt 0:06:23]} 31. Rxc3 {[%emt 0:00:16]} Qxa2 {[%emt 0:00:32]} 32. Rc5 {[%emt 0:01:08]} b6 {[%emt 0:01:06]} 33. Rc4 {[%emt 0:00:26]} b5 {[%emt 0:01:25]} 34. Rc5 {[%emt 0:00:05]} Qb1 {[%emt 0:00:58]} 35. Qf6 {[%emt 0:01:47]} Rf8 {[%emt 0:00:49]} 36. d6 {[%emt 0:01:16]} Qd3 {[%emt 0:00:41]} 37. Qe7 {[%emt 0:00:27]} Qe3 {[%emt 0:01:06]} 38. Qe5 {[%emt 0:03:10]} Qd2 {[%emt 0:02:45]} 39. Rd5 {[%emt 0:00:20]} Qc1 {[%emt 0:01:02]} 40. d7 {[%emt 0:00:00]} Qc6 {[%emt 0:00:00]} 41. d8=Q {[%emt 0:00:29]} 1-0

[Event "WYCC 2018 O18"]
[Site "Halkidiki"]
[Date "2018.10.23"]
[Round "5"]
[White "Martinez Fernandez, Adrian"]
[Black "Torres Cueto, Jesus Marcial"]
[Result "0-1"]
[ECO "C07"]
[WhiteElo "2277"]
[BlackElo "2078"]
[Annotator "NA"]
[PlyCount "180"]
[EventDate "2018.10.20"]
[EventType "swiss"]
[EventCountry "GRE"]
[SourceTitle "playchess.com"]
[Source "ChessBase"]
[SourceQuality "1"]
[TimeControl "40/5400+30:1800+30"]

1. e4 {[%emt 0:00:00]} e6 {[%emt 0:00:18]} 2. d4 {[%emt 0:00:00]} d5 {[%emt 0:00:02]} 3. Nd2 {[%emt 0:00:00]} c5 {[%emt 0:00:15]} 4. exd5 {[%emt 0:00:11]} Qxd5 {[%emt 0:00:08]} 5. Ngf3 {[%emt 0:00:06]} cxd4 {[%emt 0:00:05]} 6. Bc4 {[%emt 0:00:06]} Qd6 {[%emt 0:00:05]} 7. O-O {[%emt 0:00:20]} Nf6 {[%emt 0:00:04]} 8. Nb3 {[%emt 0:00:10]} Nc6 {[%emt 0:00:08]} 9. Nbxd4 {[%emt 0:00:08]} Nxd4 {[%emt 0:00:09]} 10. Nxd4 {[%emt 0:00:06]} Bd7 {[%emt 0:02:54]} 11. Re1 {[%emt 0:04:06]} Be7 {[%emt 0:03:08]} 12. c3 {[%emt 0:08:31]} O-O {[%emt 0:02:17]} 13. Qf3 {[%emt 0:00:52] C07: French Tarrasch: 3...c5, 4 Ngf3 and 4 exd5 Qxd5} Qc5 {[%emt 0:06:14]} (13... Qb6 14. a4 Rfc8 15. a5 Qd8 16. Bf1 Bd6 17. Bg5 h6 18. Bxf6 Qxf6 19. Qxb7 e5 20. Qxd7 exd4 21. cxd4 {1-0 (29) Zhou,J (2595)-Xu,Y (2536) Beijing 2017}) 14. Bf1 $146 {[%emt 0:01:53]} ({Predecessor:} 14. Bd3 Nd5 15. Bd2 Rfd8 16. Rad1 Qb6 17. Be4 Bf6 18. Bc1 Rac8 19. Rd3 a6 20. Nxe6 fxe6 {1-0 (34) Deforel,J (2273)-Martins Barriga,F (2303) ICCF email 2010}) 14... Qd5 {[%emt 0:06:33]} 15. Qxd5 {[%emt 0:12:06]} Nxd5 {[%emt 0:00:09]} 16. c4 {[%emt 0:06:03]} Nb6 {[%emt 0:04:10]} 17. Be3 {[%emt 0:04:32]} Rac8 {[%emt 0:03:27]} 18. Rac1 {[%emt 0:01:14]} Bb4 {[%emt 0:04:37]} 19. Red1 {[%emt 0:02:03]} Bc5 {[%emt 0:05:43]} 20. Be2 {[%emt 0:07:09]} e5 {[%emt 0:05:42]} 21. Nf3 {[%emt 0:00:45]} Bxe3 {[%emt 0:01:25]} 22. fxe3 {[%emt 0:00:14]} Be6 {[%emt 0:02:08]} 23. b3 {[%emt 0:05:00]} f6 {[%emt 0:03:31]} 24. Nd2 {[%emt 0:04:43]} f5 $16 {[%emt 0:09:52]} (24... Rfd8 $14) 25. Nf3 {[%emt 0:00:38]} Nd7 {[%emt 0:04:48]} 26. Ng5 {[%emt 0:06:57]} Nc5 {[%emt 0:00:13]} 27. b4 {[%emt 0:00:40]} h6 {[%emt 0:00:09]} 28. Nxe6 {[%emt 0:00:13]} Nxe6 {[%emt 0:00:06]} 29. Rd6 {[%emt 0:04:11]} Ng5 {[%emt 0:04:31]} 30. Rd7 {[%emt 0:02:43]} Rf7 {[%emt 0:00:33]} 31. Rcd1 {[%emt 0:00:20]} Rc7 {[%emt 0:00:43]} 32. Rxc7 {[%emt 0:00:59]} Rxc7 {[%emt 0:00:02]} 33. Rd5 {[%emt 0:00:23]} Nf7 {[%emt 0:04:13]} 34. c5 {[%emt 0:02:58]} g6 {[%emt 0:00:14]} 35. a4 {[%emt 0:05:36]} Kf8 {[%emt 0:00:25]} 36. b5 {[%emt 0:02:13]} Ke7 {[%emt 0:00:30]} 37. Bc4 {[%emt 0:00:36]} e4 {[%emt 0:05:12]} 38. h4 {[%emt 0:03:34]} h5 {[%emt 0:00:33]} 39. Kf2 {[%emt 0:03:32]} Kf6 {[%emt 0:01:19]} 40. Be2 {[%emt 0:00:00]} Ke6 {[%emt 0:00:00]} 41. b6 {[%emt 0:22:29]} axb6 {[%emt 0:01:40]} 42. cxb6 {[%emt 0:00:02]} Rc2 {[%emt 0:01:55]} 43. Rb5 {[%emt 0:00:10]} Nd6 {[%emt 0:05:45]} 44. Rb4 {[%emt 0:01:05]} Ra2 {[%emt 0:00:32]} 45. Kf1 {[%emt 0:03:46]} Kd5 {[%emt 0:00:25]} 46. Bb5 {[%emt 0:01:20]} Kc5 {[%emt 0:00:16]} 47. Rb1 {[%emt 0:01:50]} Nxb5 {[%emt 0:06:34]} 48. Rxb5+ {[%emt 0:00:07]} Kc4 {[%emt 0:00:07]} 49. Rb1 {[%emt 0:03:36]} Rxa4 {[%emt 0:02:12]} 50. Rc1+ {[%emt 0:04:38]} Kd3 {[%emt 0:00:08]} 51. Kf2 {[%emt 0:00:46]} Ra2+ {[%emt 0:00:10]} 52. Kg3 {[%emt 0:00:05]} Rb2 {[%emt 0:02:26]} 53. Kf4 {[%emt 0:00:27]} Rxb6 {[%emt 0:00:05]} 54. Rd1+ {[%emt 0:00:08]} Ke2 {[%emt 0:01:05]} 55. Rd7 {[%emt 0:01:42]} Kf1 {[%emt 0:01:23]} 56. g3 {[%emt 0:01:26]} Kg2 {[%emt 0:00:36]} 57. Rg7 {[%emt 0:00:47]} Kh3 {[%emt 0:00:15]} 58. Rg8 {[%emt 0:00:06]} Rc6 {[%emt 0:00:29]} 59. Rg7 {[%emt 0:00:16]} b6 {[%emt 0:00:16]} 60. Rb7 {[%emt 0:00:47]} Kg2 {[%emt 0:00:05]} 61. Rd7 {[%emt 0:00:55]} Kf2 {[%emt 0:00:12]} 62. Rd2+ {[%emt 0:00:08]} Ke1 {[%emt 0:00:05]} 63. Rb2 {[%emt 0:00:04]} Kd1 {[%emt 0:00:07]} 64. Kg5 {[%emt 0:00:28]} Kc1 {[%emt 0:00:17]} 65. Rb5 {[%emt 0:00:19]} Kd2 {[%emt 0:00:16]} 66. Rb3 {[%emt 0:00:06]} Kc2 {[%emt 0:00:05]} 67. Rb5 {[%emt 0:00:04]} Kd3 {[%emt 0:00:06]} 68. Rb3+ {[%emt 0:00:35]} Kc4 {[%emt 0:00:42]} 69. Rb1 {[%emt 0:00:34]} Kd5 {[%emt 0:00:12]} 70. Rd1+ {[%emt 0:00:49]} Kc4 {[%emt 0:01:40]} 71. Rc1+ {[%emt 0:02:02]} Kb5 {[%emt 0:00:14]} 72. Rb1+ {[%emt 0:03:28]} Ka4 {[%emt 0:00:05]} 73. Ra1+ {[%emt 0:00:03]} Kb3 {[%emt 0:00:10]} 74. Rb1+ {[%emt 0:00:19]} Kc2 {[%emt 0:00:55]} 75. Rb5 {[%emt 0:00:08]} Kd3 {[%emt 0:00:05]} 76. Rb3+ {[%emt 0:01:20]} Kc4 {[%emt 0:00:12]} 77. Rb1 {[%emt 0:00:01]} b5 {[%emt 0:00:18]} 78. Rc1+ {[%emt 0:00:04]} Kd5 {[%emt 0:00:05]} 79. Rd1+ {[%emt 0:00:03]} Ke5 {[%emt 0:00:54]} 80. Rd8 {[%emt 0:00:10]} Rb6 {[%emt 0:00:14]} 81. Ra8 {[%emt 0:03:06]} Kd5 {[%emt 0:00:23]} 82. Rd8+ {[%emt 0:03:26]} Kc4 {[%emt 0:00:05]} 83. g4 {[%emt 0:00:05]} hxg4 {[%emt 0:00:12]} 84. h5 {[%emt 0:00:06]} gxh5 {[%emt 0:00:05]} 85. Kxf5 {[%emt 0:00:04]} b4 {[%emt 0:01:08]} 86. Kxe4 {[%emt 0:00:15]} b3 {[%emt 0:00:10]} 87. Rc8+ {[%emt 0:00:06]} Kb4 {[%emt 0:00:05]} 88. Kd3 {[%emt 0:00:16]} Rb5 {[%emt 0:01:47]} 89. Kd2 {[%emt 0:01:35]} b2 {[%emt 0:00:12]} 90. Kc2 {[%emt 0:01:18]} Rc5+ {[%emt 0:00:05] Kc3+} 0-1

[Event "WYCC 2018 O18"]
[Site "Halkidiki"]
[Date "2018.10.23"]
[Round "5"]
[White "Alexiadis, Hristos"]
[Black "Manu David Suthandram R"]
[Result "1/2-1/2"]
[ECO "A52"]
[WhiteElo "2263"]
[BlackElo "1970"]
[Annotator "NA"]
[PlyCount "69"]
[EventDate "2018.10.20"]
[EventType "swiss"]
[EventCountry "GRE"]
[SourceTitle "playchess.com"]
[Source "ChessBase"]
[SourceQuality "1"]
[TimeControl "40/5400+30:1800+30"]

1. d4 {[%emt 0:00:00]} Nf6 {[%emt 0:00:02]} 2. c4 {[%emt 0:00:00]} e5 {[%emt 0:00:07]} 3. dxe5 {[%emt 0:00:43]} Ng4 {[%emt 0:00:07]} 4. e3 {[%emt 0:02:29]} Nxe5 {[%emt 0:00:11]} 5. Nh3 {[%emt 0:01:29]} Bb4+ {[%emt 0:03:41]} 6. Bd2 {[%emt 0:01:18]} Bxd2+ {[%emt 0:00:38]} 7. Qxd2 {[%emt 0:02:26]} O-O {[%emt 0:01:24]} 8. Nf4 {[%emt 0:00:16]} d6 {[%emt 0:02:00]} 9. Nc3 {[%emt 0:00:32] LiveBook: 8 Games} Re8 $146 {[%emt 0:00:23] A52: Budapest Gambit} ({Predecessor:} 9... Nbc6 10. Be2 Ne7 11. O-O N7g6 12. Rad1 Nxf4 13. exf4 Nd7 14. Bf3 a5 15. Ne4 Qh4 16. g3 Qh6 17. Rfe1 {½-½ (41) Sakaev,K (2594)-Shcherbakov,R (2516) Sochi 2016}) 10. Be2 {[%emt 0:00:32]} b6 {[%emt 0:00:27]} 11. O-O {[%emt 0:02:02]} Bb7 {[%emt 0:00:04]} 12. Nfd5 {[%emt 0:05:56]} c6 {[%emt 0:06:09]} 13. Nf4 {[%emt 0:00:35]} Qe7 {[%emt 0:00:09]} 14. Rad1 {[%emt 0:01:49]} Rd8 {[%emt 0:02:34]} 15. Rfe1 {[%emt 0:02:29]} Na6 {[%emt 0:00:24]} 16. Qd4 {[%emt 0:05:18]} Nc5 {[%emt 0:00:11]} 17. b4 {[%emt 0:00:38]} Ne6 {[%emt 0:00:46]} 18. Qd2 {[%emt 0:03:16]} Nc7 {[%emt 0:05:31]} 19. b5 {[%emt 0:16:10]} cxb5 {[%emt 0:00:08]} 20. cxb5 {[%emt 0:01:40]} d5 {[%emt 0:02:49]} 21. Qd4 {[%emt 0:00:58]} Ng6 {[%emt 0:03:36]} 22. Nxg6 {[%emt 0:02:55]} hxg6 {[%emt 0:00:26]} 23. Rc1 {[%emt 0:07:18]} Ne6 {[%emt 0:02:37]} 24. Qe5 {[%emt 0:00:23]} d4 {[%emt 0:02:07]} 25. exd4 {[%emt 0:00:11]} Rxd4 {[%emt 0:00:07]} 26. h3 {[%emt 0:11:24]} Qb4 {[%emt 0:06:07]} 27. Bg4 {[%emt 0:02:10]} Nf4 {[%emt 0:02:39]} 28. a3 {[%emt 0:04:12]} Qd6 {[%emt 0:06:45]} 29. Qxd6 {[%emt 0:08:20]} Rxd6 {[%emt 0:00:05]} 30. Rcd1 {[%emt 0:00:21]} Rxd1 {[%emt 0:01:47]} 31. Rxd1 {[%emt 0:00:13]} f5 $11 {[%emt 0:00:53]} 32. Rd4 {[%emt 0:08:30]} Rc8 {[%emt 0:02:13]} 33. Rxf4 {[%emt 0:01:25]} Rxc3 {[%emt 0:05:50]} 34. Be2 {[%emt 0:00:05]} Be4 {[%emt 0:00:07]} 35. h4 {[%emt 0:01:34]} 1/2-1/2

[Event "WYCC 2018 O18"]
[Site "Halkidiki"]
[Date "2018.10.23"]
[Round "5"]
[White "Galiana Fernandez, Adrian"]
[Black "Muha, Miljenko"]
[Result "0-1"]
[ECO "C68"]
[WhiteElo "2261"]
[BlackElo "2365"]
[Annotator "NA"]
[PlyCount "110"]
[EventDate "2018.10.20"]
[EventType "swiss"]
[EventCountry "GRE"]
[SourceTitle "playchess.com"]
[Source "ChessBase"]
[SourceQuality "1"]
[TimeControl "40/5400+30:1800+30"]

1. e4 {[%emt 0:00:00]} e5 {[%emt 0:00:00]} 2. Nf3 {[%emt 0:00:00]} Nc6 {[%emt 0:00:00]} 3. Bb5 {[%emt 0:00:00]} a6 {[%emt 0:00:00]} 4. Bxc6 {[%emt 0:00:05]} dxc6 {[%emt 0:00:35]} 5. O-O {[%emt 0:00:07]} Qf6 {[%emt 0:02:11]} 6. d4 {[%emt 0:00:43]} exd4 {[%emt 0:00:52]} 7. Bg5 {[%emt 0:00:05]} Qd6 {[%emt 0:00:23]} 8. Nxd4 {[%emt 0:00:07]} Be7 {[%emt 0:00:26]} 9. Bxe7 {[%emt 0:00:07]} Nxe7 {[%emt 0:00:15]} 10. Nc3 {[%emt 0:00:05]} Bd7 {[%emt 0:02:14] LiveBook: 70 Games} 11. Nb3 {[%emt 0:00:07]} Qxd1 {[%emt 0:03:37]} 12. Raxd1 {[%emt 0:00:30]} b6 {[%emt 0:00:30]} 13. Nd2 {[%emt 0:00:06]} O-O-O {[%emt 0:02:47]} 14. f4 {[%emt 0:00:06]} f6 {[%emt 0:16:43]} 15. Nf3 {[%emt 0:03:42]} Rhe8 {[%emt 0:02:47]} 16. Kf2 {[%emt 0:02:39]} c5 {[%emt 0:01:50]} 17. Rfe1 {[%emt 0:11:38]} Bc6 {[%emt 0:02:59]} 18. Rxd8+ {[%emt 0:04:03]} Kxd8 {[%emt 0:00:09]} 19. a4 {[%emt 0:01:03]} Ng6 {[%emt 0:16:55]} 20. g3 {[%emt 0:00:36]} a5 {[%emt 0:00:45]} 21. b3 {[%emt 0:00:54]} Kc8 {[%emt 0:10:34]} 22. Nd2 {[%emt 0:03:34]} Nf8 {[%emt 0:01:29]} 23. f5 {[%emt 0:18:21]} Nd7 {[%emt 0:01:34]} 24. Nd5 {[%emt 0:03:33]} Ne5 {[%emt 0:01:50]} 25. Nf4 {[%emt 0:06:33]} c4 {[%emt 0:03:47]} 26. Ke3 {[%emt 0:13:12]} Rd8 {[%emt 0:12:47]} (26... g6 $15 27. h3 gxf5) 27. Nxc4 {[%emt 0:05:34]} Nxc4+ {[%emt 0:01:09]} 28. bxc4 {[%emt 0:00:02]} Bxa4 {[%emt 0:00:10]} 29. Ne6 {[%emt 0:00:09]} Rd7 {[%emt 0:01:59]} 30. c5 {[%emt 0:01:04]} Kb7 {[%emt 0:02:07]} 31. Rb1 {[%emt 0:00:22]} Ka6 {[%emt 0:02:27]} 32. c4 {[%emt 0:03:00]} Re7 {[%emt 0:04:45]} 33. cxb6 {[%emt 0:01:33]} cxb6 {[%emt 0:00:05]} 34. c5 {[%emt 0:00:08]} b5 {[%emt 0:02:12]} 35. c6 {[%emt 0:00:04]} Kb6 {[%emt 0:01:20]} 36. Rc1 {[%emt 0:14:22]} Bb3 {[%emt 0:00:16]} 37. c7 {[%emt 0:00:06]} Bxe6 {[%emt 0:00:19]} 38. fxe6 {[%emt 0:00:26]} Rxc7 {[%emt 0:00:05]} 39. Rd1 {[%emt 0:00:40]} Re7 {[%emt 0:02:03]} 40. Rd6+ {[%emt 0:00:00]} Kc5 {[%emt 0:00:00]} 41. Ra6 {[%emt 0:06:02]} a4 $19 {[%emt 0:07:27]} 42. Kd3 {[%emt 0:00:11]} Re8 {[%emt 0:03:04]} 43. e5 {[%emt 0:00:04]} fxe5 {[%emt 0:05:58]} 44. Ke4 {[%emt 0:00:05]} b4 {[%emt 0:03:37]} 45. Ra5+ {[%emt 0:03:41]} Kc4 {[%emt 0:00:54]} 46. Kxe5 {[%emt 0:00:06]} a3 {[%emt 0:02:11]} 47. Kd6 {[%emt 0:00:04]} Kb3 {[%emt 0:01:17]} 48. Kd7 {[%emt 0:00:07]} Rh8 {[%emt 0:01:00]} 49. Rf5 {[%emt 0:00:39]} a2 {[%emt 0:00:15]} 50. Rf3+ {[%emt 0:02:41]} Kb2 {[%emt 0:00:24]} 51. Rf2+ {[%emt 0:00:07]} Ka3 {[%emt 0:00:14]} 52. Rf1 {[%emt 0:00:05]} b3 {[%emt 0:01:20]} 53. e7 {[%emt 0:00:06]} Rb8 {[%emt 0:00:48]} 54. Rc1 {[%emt 0:02:05]} Kb2 {[%emt 0:00:37]} 55. Rc8 {[%emt 0:00:10]} Rxc8 {[%emt 0:00:16]} 0-1

[Event "WYCC 2018 O18"]
[Site "Halkidiki"]
[Date "2018.10.23"]
[Round "5"]
[White "Ozates, Tuna"]
[Black "Bilic, Milanko"]
[Result "1-0"]
[ECO "B90"]
[WhiteElo "2225"]
[BlackElo "2009"]
[Annotator "NA"]
[PlyCount "87"]
[EventDate "2018.10.20"]
[EventType "swiss"]
[EventCountry "GRE"]
[SourceTitle "playchess.com"]
[Source "ChessBase"]
[SourceQuality "1"]
[TimeControl "40/5400+30:1800+30"]

1. e4 {[%emt 0:00:00]} c5 {[%emt 0:00:06]} 2. Nf3 {[%emt 0:00:00]} d6 {[%emt 0:00:04]} 3. d4 {[%emt 0:00:00]} cxd4 {[%emt 0:00:04]} 4. Nxd4 {[%emt 0:00:00]} Nf6 {[%emt 0:00:08]} 5. Nc3 {[%emt 0:00:00]} a6 {[%emt 0:00:05]} 6. Be3 {[%emt 0:00:00]} e6 {[%emt 0:00:11]} 7. f3 {[%emt 0:00:00]} b5 {[%emt 0:00:05]} 8. Qd2 {[%emt 0:00:03]} Nbd7 {[%emt 0:02:34]} 9. g4 {[%emt 0:00:19]} Nb6 {[%emt 0:00:16]} 10. g5 {[%emt 0:03:17] LiveBook: 30 Games} Nfd7 {[%emt 0:00:06]} 11. a3 {[%emt 0:17:01] B80: Sicilian Scheveningen: 6 g3 and 6 Be3, including English Attack} Bb7 {[%emt 0:00:33]} 12. h4 {[%emt 0:01:26]} Be7 {[%emt 0:15:12]} 13. h5 {[%emt 0:07:05]} (13. Rg1 Rc8 14. h5 Ne5 15. b3 Qc7 16. Nce2 g6 {0-1 (30) Raja,H (2420)-Moroni,L (2530) Zuerich 2017}) 13... Ne5 {[%emt 0:17:17]} 14. b3 {[%emt 0:27:40]} d5 $146 {[%emt 0:06:48]} ({Predecessor:} 14... Rc8 15. Bh3 Qc7 16. Nce2 Nxf3+ 17. Nxf3 Bxe4 {1-0 (49) Filipi,S (2072)-Fojtu,P (2170) Czechia 2008}) 15. f4 {[%emt 0:05:32]} Ng4 {[%emt 0:10:11]} 16. e5 {[%emt 0:00:05]} Nxe3 {[%emt 0:01:29]} 17. Qxe3 {[%emt 0:00:02]} Rc8 {[%emt 0:01:10]} 18. Nce2 $16 {[%emt 0:00:29]} Nd7 {[%emt 0:09:11]} 19. Bh3 {[%emt 0:02:21]} Nc5 {[%emt 0:01:53]} 20. O-O-O {[%emt 0:12:10]} Ne4 {[%emt 0:02:44]} 21. Kb2 {[%emt 0:00:50]} g6 {[%emt 0:11:37]} 22. hxg6 {[%emt 0:00:26]} hxg6 {[%emt 0:00:07]} 23. Bxe6 {[%emt 0:00:55]} Rxh1 {[%emt 0:01:20]} 24. Rxh1 {[%emt 0:00:07]} Bxa3+ {[%emt 0:01:54]} 25. Kb1 {[%emt 0:00:12]} Rc7 {[%emt 0:04:38]} 26. Bg4 {[%emt 0:03:36]} Bc8 {[%emt 0:01:22]} 27. Rh8+ {[%emt 0:00:43]} Bf8 {[%emt 0:00:05]} 28. e6 {[%emt 0:03:43]} fxe6 {[%emt 0:00:17]} 29. Bf3 {[%emt 0:00:53]} Kf7 {[%emt 0:06:03]} 30. Bxe4 {[%emt 0:08:04]} dxe4 {[%emt 0:00:01]} 31. Qh3 {[%emt 0:00:09]} Ke8 {[%emt 0:06:11]} 32. Qh6 {[%emt 0:02:16]} Qe7 {[%emt 0:00:28]} 33. Qxg6+ {[%emt 0:00:17]} Qf7 {[%emt 0:00:09]} 34. Qxe4 {[%emt 0:00:14]} Qg7 {[%emt 0:01:20]} 35. Nxe6 {[%emt 0:05:22]} Bxe6 {[%emt 0:00:13]} 36. Qxe6+ {[%emt 0:00:04]} Re7 {[%emt 0:00:13]} 37. Qc6+ {[%emt 0:01:07]} Rd7 {[%emt 0:01:12]} 38. Qa8+ {[%emt 0:00:35]} Kf7 {[%emt 0:00:42]} 39. g6+ {[%emt 0:01:01]} Ke7 {[%emt 0:00:50]} 40. Qe4+ {[%emt 0:00:00]} Kd8 {[%emt 0:00:00]} 41. Rh7 {[%emt 0:01:51]} Rd1+ {[%emt 0:08:59]} 42. Nc1 {[%emt 0:00:07]} Rxc1+ {[%emt 0:00:23]} 43. Kxc1 {[%emt 0:00:06]} Qa1+ {[%emt 0:00:10]} 44. Kd2 {[%emt 0:00:04]} 1-0

[Event "WYCC 2018 O18"]
[Site "Halkidiki"]
[Date "2018.10.23"]
[Round "5"]
[White "Tsomaia, Nikoloz"]
[Black "Agmanov, Zhandos"]
[Result "0-1"]
[ECO "C02"]
[WhiteElo "2201"]
[BlackElo "2354"]
[Annotator "NA"]
[PlyCount "96"]
[EventDate "2018.10.20"]
[EventType "swiss"]
[EventCountry "GRE"]
[SourceTitle "playchess.com"]
[Source "ChessBase"]
[SourceQuality "1"]
[TimeControl "40/5400+30:1800+30"]

1. e4 {[%emt 0:00:00]} e6 {[%emt 0:00:00]} 2. d4 {[%emt 0:00:00]} d5 {[%emt 0:00:00]} 3. e5 {[%emt 0:00:00]} c5 {[%emt 0:02:59]} 4. c3 {[%emt 0:00:34]} Nc6 {[%emt 0:00:12]} 5. Nf3 {[%emt 0:00:38]} Bd7 {[%emt 0:00:06]} 6. a3 {[%emt 0:04:20]} c4 {[%emt 0:02:22]} 7. Be2 {[%emt 0:03:43]} Na5 {[%emt 0:04:34]} 8. Nbd2 {[%emt 0:00:07] C02: French: Advance Variation} Nh6 {[%emt 0:00:13]} 9. O-O {[%emt 0:01:54]} Be7 {[%emt 0:00:51]} 10. Rb1 {[%emt 0:00:43]} O-O {[%emt 0:00:30]} 11. Re1 {[%emt 0:04:12]} Qe8 $146 {[%emt 0:03:28]} ({Predecessor:} 11... Rc8 12. Qc2 f5 13. exf6 Bxf6 14. Nf1 Be8 15. Bxh6 Bg6 {1-0 (39) Markgraf,A (2268)-Storjohann,K (1796) Bad Lauterberg 2003}) 12. Bf1 {[%emt 0:04:49]} Ba4 {[%emt 0:02:41]} 13. Qe2 {[%emt 0:00:10]} a6 {[%emt 0:06:23]} 14. g3 {[%emt 0:16:33]} Kh8 {[%emt 0:04:19]} 15. Bg2 {[%emt 0:02:21]} Bc2 {[%emt 0:04:16]} 16. Nxc4 {[%emt 0:08:57]} Bxb1 {[%emt 0:00:27]} 17. Nxa5 {[%emt 0:00:24]} b6 {[%emt 0:09:15]} 18. Bxh6 {[%emt 0:00:35]} gxh6 {[%emt 0:05:08]} 19. Rxb1 {[%emt 0:00:10]} bxa5 {[%emt 0:00:05]} 20. Qe3 {[%emt 0:08:15]} Kg7 {[%emt 0:08:27]} 21. Bf1 {[%emt 0:08:22]} Rb8 {[%emt 0:00:49]} 22. Bd3 {[%emt 0:00:26]} Rb6 {[%emt 0:00:53]} 23. h4 {[%emt 0:01:08]} f5 {[%emt 0:07:33]} 24. exf6+ {[%emt 0:00:42]} Bxf6 {[%emt 0:00:11]} 25. Qf4 $11 {[%emt 0:11:05]} ({White should try} 25. Bc2 $16) 25... Qb8 {[%emt 0:01:57]} 26. Qg4+ {[%emt 0:00:58]} Kh8 {[%emt 0:00:08]} 27. Re1 {[%emt 0:00:59]} Qe8 {[%emt 0:08:34]} 28. Re2 {[%emt 0:02:34]} Qf7 {[%emt 0:01:25]} 29. Kg2 {[%emt 0:04:20]} Bg7 {[%emt 0:01:50]} 30. h5 {[%emt 0:03:40]} Rfb8 {[%emt 0:04:29]} 31. b4 {[%emt 0:04:26]} Rc6 {[%emt 0:00:31]} 32. c4 {[%emt 0:04:39]} axb4 {[%emt 0:01:01]} 33. cxd5 {[%emt 0:01:07]} exd5 {[%emt 0:00:15]} 34. axb4 {[%emt 0:00:37]} Rxb4 {[%emt 0:01:06]} 35. Rc2 {[%emt 0:03:18]} Rxc2 {[%emt 0:01:52]} 36. Bxc2 {[%emt 0:00:01]} a5 {[%emt 0:08:53]} 37. Qc8+ {[%emt 0:00:04]} Qf8 {[%emt 0:00:08]} 38. Qd7 {[%emt 0:01:31]} Rb2 {[%emt 0:01:32]} 39. Bf5 {[%emt 0:00:16]} Rb6 {[%emt 0:01:18]} 40. Ne5 {[%emt 0:00:00]} Rf6 {[%emt 0:00:00]} 41. Bd3 {[%emt 0:12:24]} Rxf2+ {[%emt 0:01:08]} 42. Kh3 {[%emt 0:00:03]} a4 {[%emt 0:03:11]} 43. Qxd5 {[%emt 0:03:11]} a3 {[%emt 0:00:21]} 44. Qe4 {[%emt 0:00:35]} Qf5+ {[%emt 0:00:47]} 45. Qxf5 {[%emt 0:03:56]} Rxf5 {[%emt 0:00:01]} 46. Bxf5 {[%emt 0:00:11]} a2 {[%emt 0:00:14]} 47. Nf7+ {[%emt 0:00:28]} Kg8 {[%emt 0:00:05]} 48. Nxh6+ {[%emt 0:00:11]} Kf8 {[%emt 0:00:01]} 0-1